fUSD/lending_fUSD_20240514
["ID","MTS","AMOUNT","RATE_DAILY","PERIOD"]
[326965456,1715650269374,-558.57,0.00012999,2]
[326965457,1715650269384,-558.57,0.00012999,2]
[326965458,1715650269393,-500.0,0.00012999,2]
[326965459,1715650269403,-500.0,0.00012999,2]
[326965460,1715650269412,-500.0,0.00012999,2]
[326965461,1715650269422,-500.0,0.00012999,2]
[326965462,1715650269432,-500.0,0.00012999,2]
[326965463,1715650269442,-306.42,0.00012999,2]
[326965464,1715650269452,-500.0,0.00012999,2]
[326965465,1715650269461,-500.0,0.00012999,2]
[326965466,1715650269471,-500.0,0.00012999,2]
[326965467,1715650269480,-500.0,0.00012999,2]
[326965468,1715650269490,-500.0,0.00012999,2]
[326965469,1715650269500,-500.0,0.00012999,2]
[326965470,1715650269510,-500.0,0.00012999,2]
[326965471,1715650269520,-500.0,0.00012999,2]
[326965472,1715650269530,-500.0,0.00012999,2]
[326965473,1715650269539,-500.0,0.00012999,2]
[326965474,1715650269549,-500.0,0.00012999,2]
[326965475,1715650269559,-500.0,0.00012999,2]
[326965476,1715650269569,-475.25,0.00012999,2]
[326965477,1715650269579,-500.0,0.00012999,2]
[326965478,1715650269592,-618.43,0.00012999,2]
[326965479,1715650269601,-500.0,0.00012999,2]
[326965480,1715650269610,-500.0,0.00012999,2]
[326965481,1715650269620,-500.0,0.00012999,2]
[326965482,1715650269629,-500.0,0.00012999,2]
[326965483,1715650269639,-500.0,0.00012999,2]
[326965484,1715650269648,-443.16,0.00012999,2]
[326965485,1715650269658,-467.25,0.00012999,2]
[326965486,1715650269668,-500.0,0.00012999,2]
[326965487,1715650269678,-500.0,0.00012999,2]
[326965488,1715650269688,-500.0,0.00012999,2]
[326965489,1715650269698,-500.0,0.00012999,2]
[326965490,1715650269708,-500.0,0.00012999,2]
[326965491,1715650269718,-506.87,0.00012999,2]
[326965492,1715650269728,-491.24,0.00012999,2]
[326965493,1715650269738,-506.87,0.00012999,2]
[326965494,1715650269747,-506.87,0.00012999,2]
[326965495,1715650269758,-506.87,0.00012999,2]
[326965496,1715650269767,-506.87,0.00012999,2]
[326965497,1715650269777,-506.87,0.00012999,2]
[326965498,1715650269786,-506.87,0.00012999,2]
[326965499,1715650269796,-506.87,0.00012999,2]
[326965500,1715650269812,-506.87,0.00012999,2]
[326965501,1715650269821,-506.87,0.00012999,2]
[326965502,1715650269831,-558.41,0.00012999,2]
[326965503,1715650269849,-506.87,0.00012999,2]
[326965504,1715650269861,-558.41,0.00012999,2]
[326965505,1715650269872,-506.87,0.00012999,2]
[326965506,1715650269882,-558.41,0.00012999,2]
[326965507,1715650269894,-506.87,0.00012999,2]
[326965508,1715650269903,-506.87,0.00012999,2]
[326965509,1715650269912,-558.41,0.00012999,2]
[326965510,1715650269922,-506.87,0.00012999,2]
[326965511,1715650269932,-558.41,0.00012999,2]
[326965512,1715650269941,-506.87,0.00012999,2]
[326965513,1715650269950,-506.87,0.00012999,2]
[326965514,1715650269960,-558.41,0.00012999,2]
[326965515,1715650269969,-558.41,0.00012999,2]
[326965516,1715650269979,-500.0,0.00012999,2]
[326965517,1715650269990,-507.0,0.00012999,2]
[326965518,1715650270000,-558.41,0.00012999,2]
[326965519,1715650270010,-558.41,0.00012999,2]
[326965520,1715650270021,-500.0,0.00012999,2]
[326965521,1715650270031,-500.0,0.00012999,2]
[326965522,1715650270041,-558.41,0.00012999,2]
[326965523,1715650270051,-500.0,0.00012999,2]
[326965524,1715650270061,-558.41,0.00012999,2]
[326965525,1715650270071,-500.0,0.00012999,2]
[326965526,1715650270080,-558.41,0.00012999,2]
[326965527,1715650270098,-500.0,0.00012999,2]
[326965528,1715650270107,-558.41,0.00012999,2]
[326965529,1715650270117,-500.0,0.00012999,2]
[326965530,1715650270126,-500.0,0.00012999,2]
[326965531,1715650270135,-500.0,0.00012999,2]
[326965532,1715650270145,-558.41,0.00012999,2]
[326965533,1715650270155,-500.0,0.00012999,2]
[326965534,1715650270165,-558.41,0.00012999,2]
[326965535,1715650270175,-533.26,0.00012999,2]
[326965536,1715650270184,-558.48,0.00012999,2]
[326965537,1715650270194,-500.0,0.00012999,2]
[326965538,1715650270204,-500.0,0.00012999,2]
[326965539,1715650270214,-500.0,0.00012999,2]
[326965540,1715650270224,-500.0,0.00012999,2]
[326965541,1715650270234,-500.0,0.00012999,2]
[326965542,1715650270244,-241.46,0.00012999,2]
[326965543,1715650270254,-3550.49,0.00012999,2]
[326965544,1715650270263,-3550.49,0.00012999,2]
[326965545,1715650270272,-1183.7,0.00012999,2]
[326965546,1715650270282,-500.0,0.00012999,2]
[326965547,1715650270292,-3550.49,0.00012999,2]
[326965548,1715650270451,-1183.7,0.00012999,2]
[326965549,1715650270462,-500.0,0.00012999,2]
[326965550,1715650270472,-172.96,0.00012999,2]
[326965551,1715650270483,-1183.7,0.00012999,2]
[326965552,1715650270493,-500.0,0.00012999,2]
[326965553,1715650270504,-950.52,0.00012999,2]
[326965554,1715650270514,-3550.49,0.00012999,2]
[326965555,1715650270524,-1183.7,0.00012999,2]
[326965556,1715650270534,-500.0,0.00012999,2]
[326965557,1715650270544,-950.52,0.00012999,2]
[326965558,1715650270555,-1183.7,0.00012999,2]
[326965559,1715650270564,-3550.49,0.00012999,2]
[326965560,1715650270574,-342.69,0.00012999,2]
[326965561,1715650270590,-950.52,0.00012999,2]
[326965562,1715650270600,-1183.7,0.00012999,2]
[326965563,1715650270610,-3550.49,0.00012999,2]
[326965564,1715650270620,-950.52,0.00012999,2]
[326965565,1715650270630,-1183.7,0.00012999,2]
[326965566,1715650270639,-950.52,0.00012999,2]
[326965567,1715650270649,-1183.7,0.00012999,2]
[326965568,1715650270660,-3550.49,0.00012999,2]
[326965569,1715650270670,-950.52,0.00012999,2]
[326965570,1715650270680,-1183.7,0.00012999,2]
[326965571,1715650270690,-3550.49,0.00012999,2]
[326965572,1715650270699,-950.52,0.00012999,2]
[326965573,1715650270710,-3550.49,0.00012999,2]
[326965574,1715650270719,-950.52,0.00012999,2]
[326965575,1715650270730,-3550.49,0.00012999,2]
[326965576,1715650270740,-950.52,0.00012999,2]
[326965577,1715650270750,-3550.49,0.00012999,2]
[326965578,1715650270760,-950.52,0.00012999,2]
[326965579,1715650270769,-950.52,0.00012999,2]
[326965580,1715650270779,-3550.49,0.00012999,2]
[326965581,1715650270789,-950.52,0.00012999,2]
[326965582,1715650270799,-3550.49,0.00012999,2]
[326965583,1715650270809,-1183.7,0.00012999,2]
[326965584,1715650270823,-3550.49,0.00012999,2]
[326965585,1715650270834,-1183.7,0.00012999,2]
[326965586,1715650270846,-950.52,0.00012999,2]
[326965587,1715650270855,-950.52,0.00012999,2]
[326965588,1715650270864,-1183.7,0.00012999,2]
[326965589,1715650270873,-1183.7,0.00012999,2]
[326965590,1715650270882,-950.63,0.00012999,2]
[326965591,1715650270891,-3550.49,0.00012999,2]
[326965592,1715650270900,-1183.7,0.00012999,2]
[326965593,1715650270911,-3550.6185973,0.00012999,2]
[326965594,1715650270920,-1183.7,0.00012999,2]
[326965595,1715650270930,-500.0,0.00012999,2]
[326965596,1715650270940,-1183.9,0.00012999,2]
[326965597,1715650270949,-500.0,0.00012999,2]
[326965598,1715650270959,-500.0,0.00012999,2]
[326965599,1715650270969,-500.0,0.00012999,2]
[326965600,1715650270979,-500.0,0.00012999,2]
[326965601,1715650270988,-500.0,0.00012999,2]
[326965602,1715650270997,-421.39,0.00012999,2]
[326965603,1715650271007,-500.0,0.00012999,2]
[326965604,1715650271016,-500.0,0.00012999,2]
[326965605,1715650271026,-483.09,0.00012999,2]
[326965606,1715650271035,-500.0,0.00012999,2]
[326965607,1715650271044,-500.0,0.00012999,2]
[326965608,1715650271054,-500.0,0.00012999,2]
[326965609,1715650271064,-500.0,0.00012999,2]
[326965610,1715650271074,-500.0,0.00012999,2]
[326965611,1715650271087,-500.0,0.00012999,2]
[326965612,1715650271096,-502.36,0.00012999,2]
[326965613,1715650271106,-660.79,0.00012999,2]
[326965614,1715650271116,-660.79,0.00012999,2]
[326965615,1715650271126,-660.79,0.00012999,2]
[326965616,1715650271136,-660.79,0.00012999,2]
[326965617,1715650271148,-660.79,0.00012999,2]
[326965618,1715650271157,-660.79,0.00012999,2]
[326965619,1715650271167,-660.79,0.00012999,2]
[326965620,1715650271177,-660.79,0.00012999,2]
[326965621,1715650271187,-660.79,0.00012999,2]
[326965622,1715650271196,-660.79,0.00012999,2]
[326965623,1715650271206,-660.79,0.00012999,2]
[326965624,1715650271215,-660.79,0.00012999,2]
[326965625,1715650271225,-660.79,0.00012999,2]
[326965626,1715650271234,-660.79,0.00012999,2]
[326965627,1715650271244,-660.99,0.00012999,2]
[326965628,1715650271254,-500.0,0.00012999,2]
[326965629,1715650271264,-500.0,0.00012999,2]
[326965630,1715650271274,-500.0,0.00012999,2]
[326965631,1715650271284,-500.0,0.00012999,2]
[326965632,1715650271295,-500.0,0.00012999,2]
[326965633,1715650271305,-500.0,0.00012999,2]
[326965634,1715650271316,-500.0,0.00012999,2]
[326965635,1715650271327,-500.0,0.00012999,2]
[326965636,1715650271339,-500.0,0.00012999,2]
[326965637,1715650271349,-596.66,0.00012999,2]
[326965638,1715650271358,-500.0,0.00012999,2]
[326965639,1715650271367,-500.0,0.00012999,2]
[326965640,1715650271377,-500.0,0.00012999,2]
[326965641,1715650271385,-500.0,0.00012999,2]
[326965642,1715650271395,-500.0,0.00012999,2]
[326965643,1715650271404,-500.0,0.00012999,2]
[326965644,1715650271414,-500.0,0.00012999,2]
[326965645,1715650271423,-500.0,0.00012999,2]
[326965646,1715650271433,-500.0,0.00012999,2]
[326965647,1715650271442,-500.0,0.00012999,2]
[326965648,1715650271452,-500.0,0.00012999,2]
[326965649,1715650271461,-623.29,0.00012999,2]
[326965650,1715650271471,-500.0,0.00012999,2]
[326965651,1715650271480,-500.0,0.00012999,2]
[326965652,1715650271489,-823.9,0.00012999,2]
[326965653,1715650271498,-500.0,0.00012999,2]
[326965654,1715650271508,-823.9,0.00012999,2]
[326965655,1715650271517,-500.0,0.00012999,2]
[326965656,1715650271527,-500.0,0.00012999,2]
[326965657,1715650271537,-823.9,0.00012999,2]
[326965658,1715650271550,-500.0,0.00012999,2]
[326965659,1715650271560,-823.9,0.00012999,2]
[326965660,1715650271569,-500.0,0.00012999,2]
[326965661,1715650271579,-823.9,0.00012999,2]
[326965662,1715650271591,-500.0,0.00012999,2]
[326965663,1715650271601,-500.0,0.00012999,2]
[326965664,1715650271610,-823.9,0.00012999,2]
[326965665,1715650271620,-500.0,0.00012999,2]
[326965666,1715650271629,-823.9,0.00012999,2]
[326965667,1715650271638,-823.9,0.00012999,2]
[326965668,1715650271648,-622.89,0.00012999,2]
[326965669,1715650271658,-823.9,0.00012999,2]
[326965670,1715650271668,-823.9,0.00012999,2]
[326965671,1715650271678,-823.9,0.00012999,2]
[326965672,1715650271688,-823.9,0.00012999,2]
[326965673,1715650271699,-823.9,0.00012999,2]
[326965674,1715650271709,-823.9,0.00012999,2]
[326965675,1715650271719,-500.0,0.00012999,2]
[326965676,1715650271730,-500.0,0.00012999,2]
[326965677,1715650271740,-823.9,0.00012999,2]
[326965678,1715650271750,-500.0,0.00012999,2]
[326965679,1715650271759,-824.08,0.00012999,2]
[326965680,1715650271768,-385.81,0.00012999,2]
[326965681,1715650271778,-500.0,0.00012999,2]
[326965682,1715650271787,-500.0,0.00012999,2]
[326965683,1715650271797,-500.0,0.00012999,2]
[326965684,1715650271812,-399.9,0.00012999,2]
[326965685,1715650271821,-500.0,0.00012999,2]
[326965686,1715650271831,-500.0,0.00012999,2]
[326965687,1715650271843,-500.0,0.00012999,2]
[326965688,1715650271851,-163.40691329,0.00012999,2]
[326965689,1715650271860,-500.0,0.00012999,2]
[326965690,1715650271874,-500.0,0.00012999,2]
[326965691,1715650271888,-500.0,0.00012999,2]
[326965692,1715650271898,-500.0,0.00012999,2]
[326965693,1715650271909,-500.0,0.00012999,2]
[326965694,1715650271920,-500.0,0.00012999,2]
[326965695,1715650271930,-155.11,0.00012999,2]
[326965696,1715650271941,-500.0,0.00012999,2]
[326965697,1715650271952,-609.63,0.00012999,2]
[326965698,1715650271963,-500.0,0.00012999,2]
[326965699,1715650271974,-609.63,0.00012999,2]
[326965700,1715650271983,-500.0,0.00012999,2]
[326965701,1715650271992,-609.63,0.00012999,2]
[326965702,1715650272002,-500.0,0.00012999,2]
[326965703,1715650272011,-609.63,0.00012999,2]
[326965704,1715650272021,-500.0,0.00012999,2]
[326965705,1715650272030,-500.0,0.00012999,2]
[326965706,1715650272039,-609.63,0.00012999,2]
[326965707,1715650272048,-500.0,0.00012999,2]
[326965708,1715650272058,-500.0,0.00012999,2]
[326965709,1715650272068,-609.63,0.00012999,2]
[326965710,1715650272077,-500.0,0.00012999,2]
[326965711,1715650272090,-609.63,0.00012999,2]
[326965712,1715650272099,-609.63,0.00012999,2]
[326965713,1715650272109,-600.91,0.00012999,2]
[326965714,1715650272118,-500.0,0.00012999,2]
[326965715,1715650272127,-609.63,0.00012999,2]
[326965716,1715650272136,-500.0,0.00012999,2]
[326965717,1715650272145,-609.63,0.00012999,2]
[326965718,1715650272154,-500.0,0.00012999,2]
[326965719,1715650272163,-609.63,0.00012999,2]
[326965720,1715650272173,-500.0,0.00012999,2]
[326965721,1715650272184,-609.63,0.00012999,2]
[326965722,1715650272195,-609.63,0.00012999,2]
[326965723,1715650272204,-500.0,0.00012999,2]
[326965724,1715650272214,-609.63,0.00012999,2]
[326965725,1715650272223,-500.0,0.00012999,2]
[326965726,1715650272233,-609.73,0.00012999,2]
[326965727,1715650272242,-544.85,0.00012999,2]
[326965728,1715650272254,-500.0,0.00012999,2]
[326965729,1715650272273,-500.0,0.00012999,2]
[326965730,1715650272297,-500.0,0.00012999,2]
[326965731,1715650272329,-500.0,0.00012999,2]
[326965732,1715650272379,-500.0,0.00012999,2]
[326965733,1715650272424,-343.35,0.00012999,2]
[326965734,1715650272435,-500.0,0.00012999,2]
[326965735,1715650272445,-500.0,0.00012999,2]
[326965736,1715650272455,-266.72,0.00012999,2]
[326965737,1715650272464,-500.0,0.00012999,2]
[326965738,1715650272474,-500.0,0.00012999,2]
[326965739,1715650272483,-500.0,0.00012999,2]
[326965740,1715650272492,-572.36,0.00012999,2]
[326965741,1715650272503,-500.0,0.00012999,2]
[326965742,1715650272512,-498.83,0.00012999,2]
[326965743,1715650272522,-500.0,0.00012999,2]
[326965744,1715650272532,-500.0,0.00012999,2]
[326965745,1715650272542,-500.0,0.00012999,2]
[326965746,1715650272551,-534.03289603,0.00012999,2]
[326965747,1715650272561,-500.0,0.00012999,2]
[326965748,1715650272570,-202.16142195,0.00012999,2]
[326965749,1715650272580,-2868.83,0.00012999,2]
[326965750,1715650272596,-2868.83,0.00012999,2]
[326965751,1715650272605,-2868.83,0.00012999,2]
[326965752,1715650272616,-2868.83,0.00012999,2]
[326965753,1715650272625,-2868.83,0.00012999,2]
[326965754,1715650272634,-2868.83,0.00012999,2]
[326965755,1715650272643,-2868.83,0.00012999,2]
[326965756,1715650272652,-2868.83,0.00012999,2]
[326965757,1715650272660,-2868.83,0.00012999,2]
[326965758,1715650272669,-500.0,0.00012999,2]
[326965759,1715650272678,-713.09,0.00012999,2]
[326965760,1715650272687,-2868.83,0.00012999,2]
[326965761,1715650272696,-500.0,0.00012999,2]
[326965762,1715650272704,-500.0,0.00012999,2]
[326965763,1715650272714,-500.0,0.00012999,2]
[326965764,1715650272727,-2868.83,0.00012999,2]
[326965765,1715650272736,-282.04867993,0.00012999,2]
[326965766,1715650272744,-500.0,0.00012999,2]
[326965767,1715650272753,-500.0,0.00012999,2]
[326965768,1715650272763,-2868.83,0.00012999,2]
[326965769,1715650272771,-713.09,0.00012999,2]
[326965770,1715650272780,-500.0,0.00012999,2]
[326965771,1715650272789,-500.0,0.00012999,2]
[326965772,1715650272799,-2868.83,0.00012999,2]
[326965773,1715650272807,-713.09,0.00012999,2]
[326965774,1715650272821,-500.0,0.00012999,2]
[326965775,1715650272830,-2868.83,0.00012999,2]
[326965776,1715650272844,-713.09,0.00012999,2]
[326965777,1715650272853,-500.0,0.00012999,2]
[326965778,1715650272863,-469.38262207,0.00012999,2]
[326965779,1715650272871,-713.09,0.00012999,2]
[326965780,1715650272880,-500.0,0.00012999,2]
[326965781,1715650272889,-2868.98989061,0.00012999,2]
[326965782,1715650272898,-487.2141719,0.00012999,2]
[326965783,1715650272907,-713.09,0.00012999,2]
[326965784,1715650272916,-713.09,0.00012999,2]
[326965785,1715650272925,-713.09,0.00012999,2]
[326965786,1715650272934,-713.09,0.00012999,2]
[326965787,1715650272943,-713.09,0.00012999,2]
[326965788,1715650272951,-713.09,0.00012999,2]
[326965789,1715650272960,-713.09,0.00012999,2]
[326965790,1715650272970,-713.09,0.00012999,2]
[326965791,1715650272979,-713.09,0.00012999,2]
[326965792,1715650272988,-713.09,0.00012999,2]
[326965793,1715650272996,-713.09252343,0.00012999,2]
[326965794,1715650273006,-500.0,0.00012999,2]
[326965795,1715650273015,-500.0,0.00012999,2]
[326965796,1715650273023,-500.0,0.00012999,2]
[326965797,1715650273033,-500.0,0.00012999,2]
[326965798,1715650273042,-500.0,0.00012999,2]
[326965799,1715650273051,-500.0,0.00012999,2]
[326965800,1715650273060,-500.0,0.00012999,2]
[326965801,1715650273069,-500.0,0.00012999,2]
[326965802,1715650273078,-500.0,0.00012999,2]
[326965803,1715650273092,-382.51943549,0.00012999,2]
[326965804,1715650273101,-500.0,0.00012999,2]
[326965805,1715650273110,-500.0,0.00012999,2]
[326965806,1715650273119,-500.0,0.00012999,2]
[326965807,1715650273128,-500.0,0.00012999,2]
[326965808,1715650273137,-500.0,0.00012999,2]
[326965809,1715650273146,-500.0,0.00012999,2]
[326965810,1715650273155,-500.0,0.00012999,2]
[326965811,1715650273163,-500.0,0.00012999,2]
[326965812,1715650273172,-296.15245599,0.00012999,2]
[326965813,1715650273182,-500.0,0.00012999,2]
[326965814,1715650273191,-500.0,0.00012999,2]
[326965815,1715650273201,-356.50265295,0.00012999,2]
[326965816,1715650273210,-500.0,0.00012999,2]
[326965817,1715650273220,-500.0,0.00012999,2]
[326965818,1715650273229,-636.81406953,0.00012999,2]
[326965819,1715650273239,-500.0,0.00012999,2]
[326965820,1715650273248,-500.0,0.00012999,2]
[326965821,1715650273256,-500.0,0.00012999,2]
[326965822,1715650273265,-500.0,0.00012999,2]
[326965823,1715650273274,-500.0,0.00012999,2]
[326965824,1715650273283,-500.0,0.00012999,2]
[326965825,1715650273292,-500.0,0.00012999,2]
[326965826,1715650273301,-500.0,0.00012999,2]
[326965827,1715650273310,-500.0,0.00012999,2]
[326965828,1715650273319,-181.58608429,0.00012999,2]
[326965829,1715650273329,-500.0,0.00012999,2]
[326965830,1715650273342,-305.12957237,0.00012999,2]
[326965831,1715650273351,-500.0,0.00012999,2]
[326965832,1715650273360,-500.0,0.00012999,2]
[326965833,1715650273490,-500.0,0.00012999,2]
[326965834,1715650273515,-500.0,0.00012999,2]
[326965835,1715650273524,-500.0,0.00012999,2]
[326965836,1715650273533,-500.0,0.00012999,2]
[326965837,1715650273542,-500.0,0.00012999,2]
[326965838,1715650273551,-631.41211215,0.00012999,2]
[326965839,1715650273560,-500.0,0.00012999,2]
[326965840,1715650273569,-249.85216086,0.00012999,2]
[326965841,1715650273578,-343073.08236457,0.00013,2]
[326965842,1715650273592,-776979.61693361,0.00013,2]
[326965843,1715650274284,-500.0,0.00012894,2]
[326965844,1715650274294,-42.55,0.00012894,2]
[326965845,1715650274305,-468.09835847,0.00012894,2]
[326965846,1715650274314,-433.59258259,0.00012894,2]
[326965847,1715650274323,-500.0,0.00012896,2]
[326965848,1715650274332,-500.0,0.00012896,2]
[326965849,1715650274345,-647.37,0.00012897,2]
[326965850,1715650274354,-500.0,0.00012897,2]
[326965851,1715650274362,-500.0,0.00012897,2]
[326965852,1715650274371,-500.0,0.00012897,2]
[326965853,1715650274380,-120.97371503,0.00012897,2]
[326965854,1715650274406,-284.64976911,0.00012897,2]
[326965855,1715650274470,-94.37651586,0.00012897,2]
[326965856,1715650274479,-360.70148326,0.00012997,2]
[326965857,1715650274490,-139.29851674,0.00012997,2]
[326965858,1715650274499,-500.0,0.00012997,2]
[326965859,1715650274508,-647.37,0.00012998,2]
[326965860,1715650274518,-532.565921,0.00012998,2]
[326965861,1715650274527,-74.46556226,0.00012998,2]
[326965862,1715650274538,-323.224,0.00012998,2]
[326965863,1715650274549,-249.68043774,0.00012998,2]
[326965864,1715650274558,-519.68731736,0.00012998,2]
[326965865,1715650274567,-647.37,0.00012998,2]
[326965866,1715650274576,-500.0,0.00012998,2]
[326965867,1715650274589,-647.37,0.00012998,2]
[326965868,1715650274598,-519.20140852,0.00012998,2]
[326965869,1715650274607,-647.37,0.00012999,2]
[326965870,1715650274616,-647.37,0.00012999,2]
[326965871,1715650274625,-17407.95083638,0.00013,2]
[326965872,1715650274636,-1846.98288704,0.00013,2]
[326965873,1715650274647,-3981.85142367,0.00013,2]
[326965874,1715650275111,-392.30596212,0.00012836,2]
[326965875,1715650275122,-3501.8633857,0.00012836,2]
[326965876,1715650275131,-179.73430501,0.00012895,2]
[326965877,1715650275140,-500.0,0.00012897,2]
[326965878,1715650275149,-500.0,0.00012998,2]
[326965879,1715650275158,-296.98038866,0.00012998,2]
[326965880,1715650275168,-515.6341215,0.00012998,2]
[326965881,1715650275177,-158.27859525,0.00012999,2]
[326965882,1715650275245,199.93772068,0.000288,120]
[326965883,1715650275265,-792.55303856,0.00012998,2]
[326965884,1715650275275,-489.09140475,0.00012999,2]
[326965885,1715650275285,-647.37,0.00012999,2]
[326965886,1715650275293,-84.57615529,0.00012999,2]
[326965887,1715650275304,-562.79384471,0.00012999,2]
[326965888,1715650275314,-647.37,0.00012999,2]
[326965889,1715650275323,-647.37,0.00012999,2]
[326965890,1715650275332,-5383.82155263,0.00013,2]
[326965891,1715650275905,-500.0,0.00012894,2]
[326965892,1715650275914,-508.8042575,0.00012894,2]
[326965893,1715650275924,-586.7873532,0.00012895,2]
[326965894,1715650275933,-5174.1713431,0.00012895,2]
[326965895,1715650275944,-1163.80373561,0.00012895,2]
[326965896,1715650275955,-13258.88865415,0.00012895,2]
[326965897,1715650275964,-518.80164662,0.00012896,2]
[326965898,1715650275973,-300.97451711,0.00012996,2]
[326965899,1715650275983,-647.37,0.00012999,2]
[326965900,1715650275992,-647.37,0.00012999,2]
[326965901,1715650276002,-647.37,0.00012999,2]
[326965902,1715650276011,-647.37,0.00012999,2]
[326965903,1715650276021,-647.37,0.00012999,2]
[326965904,1715650276030,-647.37,0.00012999,2]
[326965905,1715650276040,-647.37,0.00012999,2]
[326965906,1715650276049,-647.37,0.00012999,2]
[326965907,1715650276058,-39070.21911212,0.00013,2]
[326965908,1715650276102,-647.37,0.00012999,2]
[326965909,1715650276112,-236.47175501,0.00013,2]
[326965911,1715650396254,150.0,0.00013,30]
[326965912,1715650452324,6653.4796109,0.00011,2]
[326965913,1715650515800,2940.73,0.0003,120]
[326965919,1715651310820,357.0,0.0003,120]
[326965920,1715651316424,233.25,0.00011402,2]
[326965921,1715651318528,1500.0,0.00011402,2]
[326965924,1715651332425,2327.34629703,0.00011405,2]
[326965928,1715651336003,155.0,0.00011404,2]
[326965932,1715651379280,62279.49865111,0.00011402,2]
[326965943,1715651431744,-1244.50447406,0.00011408,2]
[326965944,1715651431754,-405.7270393,0.00011408,2]
[326965945,1715651431764,-657.80753479,0.00011409,2]
[326965946,1715651431774,-250.0,0.00011417,2]
[326965948,1715651431784,-250.0,0.00011424,2]
[326965950,1715651431794,-150.0,0.00011439,2]
[326965952,1715651431804,-16355.23653974,0.0001144,2]
[326965954,1715651431816,-1372.00002,0.0001144,2]
[326965956,1715651431829,-2492.08908691,0.0001144,2]
[326965958,1715651431841,-385.01912969,0.0001144,2]
[326965959,1715651431977,-808.63693813,0.0001144,2]
[326965960,1715651431990,-2477.01828553,0.0001144,2]
[326965961,1715651432000,-494.48,0.00011476,2]
[326965962,1715651432010,-180.33,0.00011484,2]
[326965963,1715651432020,-745.38,0.0001149,2]
[326965964,1715651432030,-254.62,0.00011496,2]
[326965965,1715651432040,-500.0,0.00011505,2]
[326965966,1715651432050,-179.23,0.00011505,2]
[326965967,1715651432059,-2309.44882761,0.00011563,2]
[326965968,1715651432071,-891.11117239,0.00011563,2]
[326965969,1715651432084,-19596.86373286,0.000116,2]
[326965970,1715651432094,-158.03691831,0.00011683,2]
[326965971,1715651432104,-783.21738638,0.00011684,2]
[326965972,1715651432114,-500.0,0.00011702,2]
[326965973,1715651432124,-2461.29111359,0.000118,2]
[326965974,1715651432133,-499.99,0.00011888,2]
[326965975,1715651432143,-155.0,0.0001225,2]
[326965976,1715651432153,-1296.5471565,0.00012251,2]
[326965977,1715651432162,-319.0,0.000123,2]
[326965978,1715651432173,-150.0,0.000123,2]
[326965980,1715651432182,-351.48,0.000123,2]
[326965982,1715651432196,-277.8,0.000123,2]
[326965983,1715651432206,-217.25,0.000123,2]
[326965984,1715651432218,-418.68,0.000123,2]
[326965985,1715651432228,-523.56,0.000123,2]
[326965986,1715651432238,-210.0,0.00012583,2]
[326965987,1715651432247,-3575.7648,0.00012695,2]